[Event "IV Closed GM BCC 2021"]
[Site "Barcelona"]
[Date "2021.04.05"]
[Round "1.2"]
[White "Gines Esteo, Pedro Antonio"]
[Black "Valenzuela Gomez, Fernando"]
[Result "1/2-1/2"]
[ECO "A46"]
[WhiteElo "2449"]
[BlackElo "2382"]
[Annotator "ChessBase"]
[PlyCount "64"]
[EventDate "2021.04.05"]
[EventType "tourn"]
[EventCountry "ESP"]
[SourceTitle "playchess.com"]
[Source "ChessBase"]
[SourceQuality "1"]
[TimeControl "5400+30"]

1. d4 {[%emt 0:00:00]} Nf6 {[%emt 0:02:16]} 2. Nf3 {[%emt 0:00:00]} d5 {[%emt 0:00:08]} 3. c4 {[%emt 0:01:19]} e6 {[%emt 0:01:32]} 4. e3 {[%emt 0:02:18]} a6 {[%emt 0:00:45]} 5. a3 {[%emt 0:07:34]} dxc4 {[%emt 0:02:07]} 6. Bxc4 {[%emt 0:00:27]} b5 {[%emt 0:00:17]} 7. Bd3 {[%emt 0:13:29]} Bb7 {[%emt 0:04:56]} 8. O-O {[%emt 0:02:00]} Nbd7 {[%emt 0:01:29]} 9. Qe2 {[%emt 0:03:10]} c5 {[%emt 0:01:59]} 10. dxc5 {[%emt 0:00:51]} Nxc5 {[%emt 0:08:03]} 11. Bc2 {[%emt 0:00:15]} Qc7 {[%emt 0:04:37]} 12. Nc3 {[%emt 0:06:27]} Nce4 {[%emt 0:08:55]} 13. Nxe4 {[%emt 0:02:52]} Nxe4 {[%emt 0:00:10]} 14. Bxe4 {[%emt 0:27:04]} Bxe4 {[%emt 0:00:22]} 15. Bd2 {[%emt 0:00:45]} Bd6 {[%emt 0:02:57]} 16. Bb4 {[%emt 0:00:25]} Bxb4 {[%emt 0:04:58]} 17. axb4 {[%emt 0:00:09]} Qe7 {[%emt 0:04:08]} 18. Rfd1 {[%emt 0:14:06]} O-O {[%emt 0:01:34]} 19. Ne5 {[%emt 0:02:42]} Rfd8 {[%emt 0:07:55]} 20. f3 {[%emt 0:02:14]} f6 {[%emt 0:10:14]} 21. Rxd8+ {[%emt 0:03:29]} Rxd8 {[%emt 0:00:37]} 22. fxe4 {[%emt 0:00:09]} fxe5 {[%emt 0:00:14]} 23. Qg4 {[%emt 0:08:34]} Kh8 {[%emt 0:01:59]} 24. h3 {[%emt 0:01:04]} Qxb4 {[%emt 0:01:39]} 25. Rxa6 {[%emt 0:00:12]} Qxb2 {[%emt 0:05:37]} 26. Qxe6 {[%emt 0:00:14]} Qb1+ {[%emt 0:02:31]} 27. Kh2 {[%emt 0:00:07]} Qxe4 {[%emt 0:00:14]} 28. Rd6 {[%emt 0:01:29]} Rg8 {[%emt 0:02:54]} 29. Qb3 {[%emt 0:00:26]} h6 {[%emt 0:01:01]} 30. Rb6 {[%emt 0:00:18]} Kh7 {[%emt 0:08:52]} 31. Rxb5 {[%emt 0:00:18]} Rc8 {[%emt 0:00:26]} 32. Rb4 {[%emt 0:00:34]} Qf5 {[%emt 0:02:35]} 1/2-1/2

[Event "IV Closed GM BCC 2021"]
[Site "Barcelona"]
[Date "2021.04.05"]
[Round "1.4"]
[White "Garcia Ramos, Daniel"]
[Black "Perez Mitjans, Orelvis"]
[Result "1/2-1/2"]
[ECO "A30"]
[WhiteElo "2436"]
[BlackElo "2412"]
[Annotator "ChessBase"]
[PlyCount "59"]
[EventDate "2021.04.05"]
[EventType "tourn"]
[EventCountry "ESP"]
[SourceTitle "playchess.com"]
[Source "ChessBase"]
[SourceQuality "1"]
[TimeControl "5400+30"]

1. c4 {[%emt 0:00:00]} c5 {[%emt 0:00:06]} 2. Nf3 {[%emt 0:00:00]} Nc6 {[%emt 0:00:13]} 3. g3 {[%emt 0:00:00]} g6 {[%emt 0:00:07]} 4. Bg2 {[%emt 0:00:00]} Bg7 {[%emt 0:00:07]} 5. O-O {[%emt 0:00:10]} Nh6 {[%emt 0:00:15]} 6. Nc3 {[%emt 0:01:56]} Nf5 {[%emt 0:00:09]} 7. a3 {[%emt 0:05:49]} O-O {[%emt 0:21:34]} 8. Rb1 {[%emt 0:01:24]} a5 {[%emt 0:07:45]} 9. Ne1 {[%emt 0:06:23]} d6 {[%emt 0:01:40]} 10. d3 {[%emt 0:03:09]} Bd7 {[%emt 0:00:50]} 11. Bd2 {[%emt 0:00:56]} e6 {[%emt 0:04:38]} 12. e3 {[%emt 0:03:05]} h5 {[%emt 0:07:18]} 13. b3 {[%emt 0:03:58]} Qe7 {[%emt 0:07:29]} 14. Nc2 {[%emt 0:01:30]} Nh6 {[%emt 0:09:08]} 15. Qe2 {[%emt 0:22:58]} h4 {[%emt 0:05:00]} 16. Rfc1 {[%emt 0:09:45]} hxg3 {[%emt 0:00:58]} 17. hxg3 {[%emt 0:00:06]} f5 {[%emt 0:02:07]} 18. b4 {[%emt 0:03:29]} axb4 {[%emt 0:01:27]} 19. axb4 {[%emt 0:00:08]} cxb4 {[%emt 0:01:14]} 20. Nxb4 {[%emt 0:01:00]} Nxb4 {[%emt 0:01:38]} 21. Rxb4 {[%emt 0:00:10]} Bc6 {[%emt 0:00:03]} 22. Rcb1 {[%emt 0:01:43]} Ng4 {[%emt 0:03:44]} 23. d4 {[%emt 0:01:57]} Qg5 {[%emt 0:03:00]} 24. d5 {[%emt 0:19:56]} exd5 {[%emt 0:07:56]} 25. Bxd5+ {[%emt 0:01:50]} Bxd5 {[%emt 0:00:43]} 26. Nxd5 {[%emt 0:00:08]} Qh5 {[%emt 0:04:13]} 27. f3 {[%emt 0:00:39]} Ne5 {[%emt 0:00:07]} 28. Kg2 {[%emt 0:01:48]} Ra2 {[%emt 0:00:08]} 29. Rf1 {[%emt 0:03:28]} Rf7 {[%emt 0:06:12]} 30. Nf4 {[%emt 0:03:01]} 1/2-1/2

[Event "IV Closed GM BCC 2021"]
[Site "Barcelona"]
[Date "2021.04.05"]
[Round "1.5"]
[White "Maurizzi, Marc Andria"]
[Black "Hernandez, Cristian Andres"]
[Result "0-1"]
[ECO "E32"]
[WhiteElo "2479"]
[BlackElo "2357"]
[Annotator "ChessBase"]
[PlyCount "86"]
[EventDate "2021.04.05"]
[EventType "tourn"]
[EventCountry "ESP"]
[SourceTitle "playchess.com"]
[Source "ChessBase"]
[SourceQuality "1"]
[TimeControl "5400+30"]

1. d4 {[%emt 0:00:00]} Nf6 {[%emt 0:00:25]} 2. c4 {[%emt 0:00:00]} e6 {[%emt 0:00:57]} 3. Nc3 {[%emt 0:01:15]} Bb4 {[%emt 0:00:37]} 4. Qc2 {[%emt 0:00:50]} O-O {[%emt 0:03:14]} 5. a3 {[%emt 0:00:33]} Bxc3+ {[%emt 0:00:08]} 6. Qxc3 {[%emt 0:00:01]} b5 {[%emt 0:01:06]} 7. cxb5 {[%emt 0:01:25]} c6 {[%emt 0:00:05]} 8. Bg5 {[%emt 0:01:38]} cxb5 {[%emt 0:01:23]} 9. e3 {[%emt 0:03:22]} Bb7 {[%emt 0:01:59]} 10. Nf3 {[%emt 0:00:57]} a6 {[%emt 0:04:32]} 11. Bd3 {[%emt 0:01:20]} Nc6 {[%emt 0:20:21]} 12. e4 {[%emt 0:08:56]} h6 {[%emt 0:04:05]} 13. Bh4 {[%emt 0:13:12]} g5 {[%emt 0:00:47]} 14. Bg3 {[%emt 0:01:53]} d5 {[%emt 0:02:41]} 15. e5 {[%emt 0:08:00]} Ne4 {[%emt 0:00:06]} 16. Qc1 {[%emt 0:00:05]} Rc8 {[%emt 0:22:25]} 17. Qe3 Ne7 {[%emt 0:00:39]} 18. O-O {[%emt 0:19:00]} Nf5 {[%emt 0:00:23]} 19. Qe2 {[%emt 0:00:06]} h5 {[%emt 0:14:18]} 20. h3 {[%emt 0:01:50]} Kg7 {[%emt 0:01:12]} 21. Rad1 {[%emt 0:11:43]} Rh8 {[%emt 0:03:17]} 22. Rfe1 {[%emt 0:06:27]} Rh6 {[%emt 0:01:18]} 23. Nd2 {[%emt 0:03:55]} Nxd4 {[%emt 0:02:07]} 24. Qf1 {[%emt 0:00:00]} Qb6 {[%emt 0:08:25]} 25. Nxe4 {[%emt 0:04:04]} dxe4 {[%emt 0:00:05]} 26. Bxe4 Bxe4 {[%emt 0:00:43]} 27. Rxe4 {[%emt 0:00:03]} Nf5 {[%emt 0:00:16]} 28. Kh1 {[%emt 0:01:21]} Rc2 {[%emt 0:01:25]} 29. Re2 {[%emt 0:00:23]} Qc6 {[%emt 0:02:11]} 30. Rdd2 {[%emt 0:00:25]} Rxd2 {[%emt 0:00:43]} 31. Rxd2 {[%emt 0:00:01]} Rh8 {[%emt 0:00:21]} 32. Qd1 {[%emt 0:00:53]} Kg6 {[%emt 0:01:08]} 33. Rd6 {[%emt 0:06:43]} Nxd6 {[%emt 0:01:12]} 34. exd6 {[%emt 0:00:01]} Qd5 {[%emt 0:00:56]} 35. Qc2+ {[%emt 0:00:26]} f5 {[%emt 0:00:14]} 36. Qc3 {[%emt 0:00:42]} e5 {[%emt 0:01:27]} 37. Bxe5 {[%emt 0:01:14]} Re8 {[%emt 0:00:03]} 38. f4 {[%emt 0:00:26]} gxf4 {[%emt 0:00:30]} 39. Bxf4 {[%emt 0:00:46]} Qd1+ {[%emt 0:00:55]} 40. Kh2 {[%emt 0:00:02]} Re1 {[%emt 0:00:11]} 41. Bd2 {[%emt 0:04:15]} Rh1+ {[%emt 0:00:35]} 42. Kg3 {[%emt 0:00:01]} h4+ {[%emt 0:00:06]} 43. Kxh4 {[%emt 0:00:23]} Qg4# {[%emt 0:00:07]} 0-1

[Event "IV Closed GM BCC 2021"]
[Site "Barcelona"]
[Date "2021.04.06"]
[Round "2.1"]
[White "Cuenca Jimenez, Jose Fernando"]
[Black "Hernandez, Cristian Andres"]
[Result "1-0"]
[ECO "E04"]
[WhiteElo "2506"]
[BlackElo "2357"]
[Annotator "ChessBase"]
[PlyCount "75"]
[EventDate "2021.04.05"]
[EventType "tourn"]
[EventCountry "ESP"]
[SourceTitle "playchess.com"]
[Source "ChessBase"]
[SourceQuality "1"]
[TimeControl "5400+30"]

1. c4 {[%emt 0:00:38]} e6 {[%emt 0:07:10]} 2. Nf3 {[%emt 0:02:12]} Nf6 {[%emt 0:00:58]} 3. g3 {[%emt 0:00:40]} d5 {[%emt 0:00:31]} 4. d4 {[%emt 0:01:31]} dxc4 {[%emt 0:02:25]} 5. Bg2 {[%emt 0:00:26]} Nc6 {[%emt 0:00:53]} 6. Qa4 {[%emt 0:04:28]} Bb4+ {[%emt 0:00:37]} 7. Bd2 {[%emt 0:00:38]} Nd5 {[%emt 0:00:13]} 8. Qb5 {[%emt 0:01:40]} Bxd2+ {[%emt 0:01:01]} 9. Nbxd2 {[%emt 0:01:13]} c3 {[%emt 0:00:07]} 10. bxc3 {[%emt 0:00:32]} Nxc3 {[%emt 0:00:05]} 11. Qb3 {[%emt 0:05:54]} Nd5 {[%emt 0:00:20]} 12. O-O {[%emt 0:00:05]} O-O {[%emt 0:01:28]} 13. Rfc1 {[%emt 0:00:04]} a5 {[%emt 0:02:28]} 14. Rab1 {[%emt 0:14:14]} Ra6 {[%emt 0:15:57]} 15. Nc4 {[%emt 0:02:10]} Nb6 {[%emt 0:00:06]} 16. Na3 {[%emt 0:03:05]} a4 {[%emt 0:19:03]} 17. Qc2 {[%emt 0:08:11]} h6 {[%emt 0:07:48]} 18. e3 {[%emt 0:03:07]} Qe7 {[%emt 0:16:19]} 19. Nb5 {[%emt 0:05:01]} Nd5 {[%emt 0:00:57]} 20. e4 {[%emt 0:20:34]} Nf6 {[%emt 0:05:10]} 21. Ne1 {[%emt 0:00:07]} Rd8 {[%emt 0:00:18]} 22. Qc4 {[%emt 0:01:35]} Ne8 {[%emt 0:03:23]} 23. e5 {[%emt 0:03:02]} Na5 {[%emt 0:01:23]} 24. Qxa4 {[%emt 0:01:45]} c6 {[%emt 0:00:36]} 25. Nc3 {[%emt 0:00:43]} b5 {[%emt 0:01:50]} 26. Qb4 {[%emt 0:00:55]} Qa7 {[%emt 0:04:43]} 27. Nc2 {[%emt 0:02:21]} Bd7 {[%emt 0:02:55]} 28. Qe7 {[%emt 0:06:08]} Rc8 {[%emt 0:01:59]} 29. Ne4 {[%emt 0:00:30]} c5 {[%emt 0:02:51]} 30. Nb4 {[%emt 0:05:52]} Nc6 {[%emt 0:00:52]} 31. Nxc6 {[%emt 0:00:32]} Bxc6 {[%emt 0:00:12]} 32. Qxa7 {[%emt 0:01:40]} Rxa7 {[%emt 0:00:03]} 33. Rxc5 {[%emt 0:00:15]} Bxe4 {[%emt 0:00:17]} 34. Bxe4 {[%emt 0:00:34]} Rd8 {[%emt 0:00:08]} 35. d5 {[%emt 0:01:44]} Rxa2 {[%emt 0:00:04]} 36. d6 {[%emt 0:00:30]} f6 {[%emt 0:01:15]} 37. Rcxb5 {[%emt 0:00:41]} fxe5 {[%emt 0:00:07]} 38. Rb8 {[%emt 0:00:31]} 1-0

[Event "IV Closed GM BCC 2021"]
[Site "Barcelona"]
[Date "2021.04.06"]
[Round "2.2"]
[White "Perez Mitjans, Orelvis"]
[Black "Maurizzi, Marc Andria"]
[Result "1/2-1/2"]
[ECO "C26"]
[WhiteElo "2412"]
[BlackElo "2479"]
[Annotator "ChessBase"]
[PlyCount "102"]
[EventDate "2021.04.05"]
[EventType "tourn"]
[EventCountry "ESP"]
[SourceTitle "playchess.com"]
[Source "ChessBase"]
[SourceQuality "1"]
[TimeControl "5400+30"]

1. e4 {[%emt 0:04:44]} e5 {[%emt 0:00:00]} 2. Nc3 {[%emt 0:00:11]} Nf6 {[%emt 0:00:24]} 3. g3 {[%emt 0:00:22]} Bc5 {[%emt 0:00:31]} 4. Bg2 {[%emt 0:00:07]} c6 {[%emt 0:00:07]} 5. Qe2 {[%emt 0:09:01]} O-O {[%emt 0:11:50]} 6. Nf3 {[%emt 0:00:52]} Re8 {[%emt 0:05:06]} 7. d3 {[%emt 0:00:42]} d5 {[%emt 0:00:57]} 8. O-O {[%emt 0:00:07]} h6 {[%emt 0:01:43]} 9. h3 {[%emt 0:01:17]} Nbd7 {[%emt 0:04:20]} 10. Nh4 {[%emt 0:08:01]} Nf8 {[%emt 0:02:22]} 11. Nd1 {[%emt 0:00:56]} Ne6 {[%emt 0:17:05]} 12. c3 {[%emt 0:04:03]} Ng5 {[%emt 0:01:37]} 13. Kh2 {[%emt 0:01:09]} dxe4 {[%emt 0:00:42]} 14. dxe4 {[%emt 0:00:07]} Be6 {[%emt 0:00:03]} 15. Nf5 {[%emt 0:06:50]} Bxf5 {[%emt 0:07:43]} 16. exf5 {[%emt 0:00:33]} e4 {[%emt 0:00:01]} 17. Be3 {[%emt 0:04:00]} Qd5 {[%emt 0:08:43]} 18. Bxc5 {[%emt 0:01:57]} Nf3+ {[%emt 0:00:21]} 19. Kh1 {[%emt 0:00:20]} Qxc5 {[%emt 0:00:06]} 20. Ne3 {[%emt 0:02:29]} Rad8 {[%emt 0:05:45]} 21. Rad1 {[%emt 0:03:24]} Ne5 {[%emt 0:00:09]} 22. Rxd8 {[%emt 0:08:23]} Rxd8 {[%emt 0:00:07]} 23. Rd1 {[%emt 0:00:20]} Rxd1+ {[%emt 0:03:36]} 24. Qxd1 {[%emt 0:27:07]} Nd3 {[%emt 0:04:05]} 25. Qe2 {[%emt 0:05:00]} Qb5 {[%emt 0:04:35]} 26. b3 {[%emt 0:01:50]} Qe5 {[%emt 0:02:56]} 27. c4 {[%emt 0:07:03]} Qa5 {[%emt 0:05:55]} 28. Kg1 {[%emt 0:01:56]} Nc1 {[%emt 0:02:00]} 29. Qc2 {[%emt 0:00:34]} Qe1+ {[%emt 0:01:19]} 30. Bf1 {[%emt 0:00:11]} Nd3 {[%emt 0:00:05]} 31. Nd1 {[%emt 0:01:14]} Nd7 {[%emt 0:01:04]} 32. Qe2 {[%emt 0:00:21]} Qa5 {[%emt 0:02:31]} 33. Qxe4 {[%emt 0:00:14]} N3e5 {[%emt 0:00:01]} 34. Qe2 {[%emt 0:00:26]} Nf6 {[%emt 0:00:28]} 35. Bg2 h5 {[%emt 0:00:18]} 36. Ne3 {[%emt 0:01:26]} Qc3 {[%emt 0:00:25]} 37. Kh2 {[%emt 0:00:12]} Nd3 {[%emt 0:01:05]} 38. Nd1 {[%emt 0:00:32]} Qd4 {[%emt 0:00:41]} 39. Qe3 {[%emt 0:00:44]} Qd7 {[%emt 0:00:44]} 40. Qxa7 {[%emt 0:00:37]} Ne1 {[%emt 0:00:25]} 41. Ne3 {[%emt 0:00:14]} Qd2 {[%emt 0:00:29]} 42. Nf1 {[%emt 0:00:17]} Qc2 {[%emt 0:00:48]} 43. Qe3 {[%emt 0:00:36]} Nxg2 {[%emt 0:00:29]} 44. Kxg2 {[%emt 0:00:04]} Qxa2 {[%emt 0:00:18]} 45. Qd3 {[%emt 0:00:23]} Qa5 {[%emt 0:00:13]} 46. Ne3 {[%emt 0:00:02]} Qe5 {[%emt 0:00:12]} 47. Qd8+ {[%emt 0:01:13]} Kh7 {[%emt 0:00:02]} 48. Qf8 {[%emt 0:00:09]} Qe4+ {[%emt 0:01:17]} 49. Kg1 {[%emt 0:00:05]} Qb1+ {[%emt 0:00:13]} 50. Kg2 {[%emt 0:00:07]} Qe4+ {[%emt 0:00:08]} 51. Kg1 {[%emt 0:00:14]} Qb1+ {[%emt 0:00:23]} 1/2-1/2

[Event "IV Closed GM BCC 2021"]
[Site "Barcelona"]
[Date "2021.04.06"]
[Round "2.3"]
[White "Narciso Dublan, Marc"]
[Black "Garcia Ramos, Daniel"]
[Result "1-0"]
[ECO "C45"]
[WhiteElo "2521"]
[BlackElo "2436"]
[Annotator "ChessBase"]
[PlyCount "61"]
[EventDate "2021.04.05"]
[EventType "tourn"]
[EventCountry "ESP"]
[SourceTitle "playchess.com"]
[Source "ChessBase"]
[SourceQuality "1"]
[TimeControl "5400+30"]

1. e4 {[%emt 0:00:00]} e5 {[%emt 0:00:00]} 2. Nf3 {[%emt 0:00:00]} Nc6 {[%emt 0:00:02]} 3. d4 {[%emt 0:00:11]} exd4 {[%emt 0:00:38]} 4. Nxd4 {[%emt 0:00:16]} Bc5 {[%emt 0:01:59]} 5. Be3 {[%emt 0:00:19]} Qf6 {[%emt 0:00:43]} 6. c3 {[%emt 0:00:16]} Nge7 {[%emt 0:01:50]} 7. Bc4 {[%emt 0:00:21]} O-O {[%emt 0:12:27]} 8. O-O {[%emt 0:00:14]} a6 {[%emt 0:09:02]} 9. Nc2 {[%emt 0:07:24]} Qe5 {[%emt 0:12:46]} 10. Nd2 {[%emt 0:02:54]} b5 {[%emt 0:08:26]} 11. Bb3 {[%emt 0:05:23]} Na5 {[%emt 0:10:27]} 12. Nf3 {[%emt 0:18:40]} Qh5 {[%emt 0:03:27]} 13. Bxc5 {[%emt 0:07:36]} Qxc5 {[%emt 0:00:11]} 14. Re1 {[%emt 0:00:25]} Nxb3 {[%emt 0:01:12]} 15. axb3 {[%emt 0:00:05]} Qb6 {[%emt 0:09:22]} 16. b4 {[%emt 0:03:36]} d6 {[%emt 0:00:44]} 17. e5 {[%emt 0:02:43]} Nf5 {[%emt 0:02:30]} 18. Qd3 {[%emt 0:18:37]} g6 {[%emt 0:07:46]} 19. exd6 {[%emt 0:06:55]} Qxd6 {[%emt 0:03:30]} 20. Qxd6 {[%emt 0:02:49]} Nxd6 {[%emt 0:01:38]} 21. Re7 {[%emt 0:00:50]} Bf5 {[%emt 0:06:36]} 22. Ne3 {[%emt 0:08:41]} Rfc8 {[%emt 0:01:49]} 23. Nd5 {[%emt 0:02:02]} Be6 {[%emt 0:01:02]} 24. Rxe6 {[%emt 0:01:02]} fxe6 {[%emt 0:00:10]} 25. Ne7+ {[%emt 0:00:02]} Kg7 {[%emt 0:03:27]} 26. Nxc8 {[%emt 0:00:07]} Rxc8 {[%emt 0:00:38]} 27. Rxa6 {[%emt 0:00:33]} Kf6 {[%emt 0:00:09]} 28. Nd4 {[%emt 0:02:19]} Ke5 {[%emt 0:00:34]} 29. Kf1 {[%emt 0:00:40]} Kd5 {[%emt 0:00:39]} 30. Rc6 {[%emt 0:03:47]} Nc4 {[%emt 0:00:43]} 31. Rc5+ {[%emt 0:00:53]} 1-0

[Event "IV Closed GM BCC 2021"]
[Site "Barcelona"]
[Date "2021.04.06"]
[Round "2.4"]
[White "Valenzuela Gomez, Fernando"]
[Black "Ayats Llobera, Gerard"]
[Result "1-0"]
[ECO "B63"]
[WhiteElo "2382"]
[BlackElo "2403"]
[Annotator "ChessBase"]
[PlyCount "97"]
[EventDate "2021.04.05"]
[EventType "tourn"]
[EventCountry "ESP"]
[SourceTitle "playchess.com"]
[Source "ChessBase"]
[SourceQuality "1"]
[TimeControl "5400+30"]

1. e4 {[%emt 0:05:49]} c5 {[%emt 0:00:00]} 2. Nf3 {[%emt 0:00:08]} d6 {[%emt 0:00:00]} 3. d4 {[%emt 0:00:06]} cxd4 {[%emt 0:00:00]} 4. Nxd4 {[%emt 0:00:06]} Nf6 {[%emt 0:00:00]} 5. Nc3 {[%emt 0:00:10]} Nc6 {[%emt 0:00:35]} 6. Bg5 {[%emt 0:00:21]} e6 {[%emt 0:00:08]} 7. Qd2 {[%emt 0:00:59]} Nxd4 {[%emt 0:01:15]} 8. Qxd4 {[%emt 0:00:18]} Be7 {[%emt 0:00:02]} 9. O-O-O {[%emt 0:02:04]} O-O {[%emt 0:05:14]} 10. f4 {[%emt 0:07:01]} h6 {[%emt 0:00:38]} 11. Bh4 {[%emt 0:01:35]} Bd7 {[%emt 0:02:07]} 12. e5 {[%emt 0:09:19]} dxe5 {[%emt 0:01:58]} 13. fxe5 {[%emt 0:00:35]} Nd5 {[%emt 0:00:12]} 14. Bxe7 {[%emt 0:00:53]} Qxe7 {[%emt 0:00:02]} 15. Nxd5 {[%emt 0:01:47]} exd5 {[%emt 0:00:01]} 16. Bd3 {[%emt 0:03:01]} Be6 {[%emt 0:02:50]} 17. h4 {[%emt 0:06:00]} a5 {[%emt 0:11:57]} 18. Rhf1 {[%emt 0:10:56]} Rab8 {[%emt 0:05:56]} 19. a4 {[%emt 0:07:03]} b6 {[%emt 0:11:32]} 20. Rf3 {[%emt 0:05:15]} h5 {[%emt 0:13:28]} 21. Rdf1 {[%emt 0:07:46]} Bg4 {[%emt 0:01:51]} 22. Rf6 {[%emt 0:06:56]} Rbe8 {[%emt 0:05:56]} 23. Rxb6 {[%emt 0:02:03]} Qxh4 {[%emt 0:01:49]} 24. Kb1 {[%emt 0:04:46]} Qg3 {[%emt 0:23:44]} 25. Qxd5 {[%emt 0:03:19]} Be6 {[%emt 0:03:26]} 26. Qxa5 {[%emt 0:07:47]} Qxg2 {[%emt 0:00:43]} 27. Qe1 {[%emt 0:00:28]} Rd8 {[%emt 0:06:29]} 28. Be4 {[%emt 0:02:50]} Qg5 {[%emt 0:01:15]} 29. Rg1 {[%emt 0:00:29]} Bg4 {[%emt 0:00:25]} 30. Bd3 {[%emt 0:00:52]} Rd4 {[%emt 0:00:26]} 31. a5 {[%emt 0:01:28]} Rfd8 {[%emt 0:00:55]} 32. e6 {[%emt 0:00:55]} Qd5 {[%emt 0:00:35]} 33. e7 {[%emt 0:01:12]} Re8 {[%emt 0:00:00]} 34. Rb8 {[%emt 0:01:34]} Bd7 {[%emt 0:00:09]} 35. Rxe8+ {[%emt 0:00:18]} Bxe8 {[%emt 0:00:00]} 36. Qc3 {[%emt 0:00:43]} g6 {[%emt 0:01:26]} 37. Qc8 {[%emt 0:00:24]} Qd7 {[%emt 0:00:38]} 38. Qxd7 {[%emt 0:00:27]} Rxd7 {[%emt 0:00:18]} 39. Bb5 {[%emt 0:00:55]} Rxe7 {[%emt 0:00:01]} 40. Bxe8 Rxe8 41. b4 {[%emt 0:00:27]} Rb8 {[%emt 0:00:34]} 42. c3 {[%emt 0:00:07]} Kg7 {[%emt 0:00:20]} 43. Kc2 {[%emt 0:00:08]} f5 {[%emt 0:00:27]} 44. a6 {[%emt 0:00:16]} h4 {[%emt 0:00:23]} 45. a7 {[%emt 0:00:45]} Ra8 {[%emt 0:00:33]} 46. Ra1 {[%emt 0:00:07]} h3 {[%emt 0:00:14]} 47. b5 {[%emt 0:00:09]} h2 {[%emt 0:00:36]} 48. b6 {[%emt 0:00:10]} Kf6 {[%emt 0:00:17]} 49. Rh1 {[%emt 0:00:33]} 1-0

[Event "IV Closed GM BCC 2021"]
[Site "Barcelona"]
[Date "2021.04.07"]
[Round "3.3"]
[White "Garcia Ramos, Daniel"]
[Black "Valenzuela Gomez, Fernando"]
[Result "1-0"]
[ECO "A21"]
[WhiteElo "2436"]
[BlackElo "2382"]
[Annotator "RC"]
[PlyCount "165"]
[EventDate "2021.04.05"]
[EventType "tourn"]
[EventCountry "ESP"]
[SourceTitle "playchess.com"]
[Source "ChessBase"]
[SourceQuality "1"]
[TimeControl "5400+30"]

1. c4 {[%emt 0:00:00]} e5 {[%emt 0:08:10]} 2. Nc3 {[%emt 0:00:00]} Bb4 {[%emt 0:00:07]} 3. Nf3 {[%emt 0:02:49]} Bxc3 {[%emt 0:00:56]} 4. dxc3 {[%emt 0:00:39]} e4 {[%emt 0:16:29]} 5. Nd4 {[%emt 0:03:43]} Nf6 {[%emt 0:00:57]} 6. Bg5 {[%emt 0:05:17]} h6 {[%emt 0:01:28]} 7. Bh4 {[%emt 0:12:11]} e3 {[%emt 0:02:45]} 8. f4 {[%emt 0:15:58]} O-O {[%emt 0:06:13]} 9. Qd3 {[%emt 0:04:14]} Re8 {[%emt 0:00:58]} 10. Nf5 {[%emt 0:06:20]} b5 {[%emt 0:00:05]} 11. cxb5 {[%emt 0:10:46]} Bb7 {[%emt 0:15:04]} 12. Nxe3 {[%emt 0:03:44]} d6 {[%emt 0:10:38]} 13. Ng4 {[%emt 0:13:56]} Nbd7 {[%emt 0:00:07]} 14. O-O-O {[%emt 0:04:52]} a6 {[%emt 0:00:24]} 15. b6 {[%emt 0:03:17]} Be4 {[%emt 0:12:58]} 16. Qd4 {[%emt 0:01:38]} Re6 {[%emt 0:02:05]} 17. Bxf6 {[%emt 0:02:27]} gxf6 {[%emt 0:00:07]} 18. f5 {[%emt 0:00:51]} Re8 {[%emt 0:00:06]} 19. Qf2 {[%emt 0:02:33]} h5 {[%emt 0:01:57]} 20. Ne3 {[%emt 0:00:59]} Kf8 {[%emt 0:03:46]} 21. Rg1 {[%emt 0:00:10]} Nxb6 {[%emt 0:04:34]} 22. Nc2 Qd7 {[%emt 0:00:32]} 23. Qd4 {[%emt 0:03:29]} Qxf5 {[%emt 0:01:38]} 24. g4 {[%emt 0:00:49]} Qg5+ {[%emt 0:06:05]} 25. Qd2 {[%emt 0:01:01]} Bxc2 {[%emt 0:01:27]} 26. Kxc2 {[%emt 0:00:18]} Nc4 {[%emt 0:01:33]} 27. Qxg5 {[%emt 0:00:20]} fxg5 {[%emt 0:00:01]} 28. Rd3 {[%emt 0:00:56]} Rab8 {[%emt 0:01:30]} 29. b3 {[%emt 0:00:24]} Ne3+ {[%emt 0:00:15]} 30. Kd2 {[%emt 0:00:12]} Nxg4 {[%emt 0:00:28]} 31. Rh3 {[%emt 0:00:57]} Nf6 {[%emt 0:00:52]} 32. Bg2 {[%emt 0:00:16]} Re5 {[%emt 0:00:35]} 33. Rf1 {[%emt 0:00:22]} Kg7 {[%emt 0:00:23]} 34. Bc6 {[%emt 0:00:47]} g4 {[%emt 0:00:39]} 35. Rd3 {[%emt 0:00:24]} Ra5 {[%emt 0:00:21]} 36. Ba4 {[%emt 0:00:47]} Ne4+ {[%emt 0:00:09]} 37. Kc2 {[%emt 0:00:05]} Nc5 {[%emt 0:00:11]} 38. Rd5 {[%emt 0:00:23]} Nb7 {[%emt 0:01:50]} 39. Rxa5 {[%emt 0:00:18]} Nxa5 {[%emt 0:00:02]} 40. Rf5 {[%emt 0:00:15]} Nb7 {[%emt 0:00:48]} 41. Bc6 {[%emt 0:01:29]} Nd8 {[%emt 0:00:31]} 42. Bd5 {[%emt 0:00:30]} c6 {[%emt 0:00:27]} 43. Bc4 {[%emt 0:00:16]} d5 {[%emt 0:00:07]} 44. Bxa6 {[%emt 0:00:24]} Ra8 {[%emt 0:00:29]} 45. Bd3 {[%emt 0:00:04]} Rxa2+ {[%emt 0:00:13]} 46. Kb1 {[%emt 0:00:04]} Rd2 {[%emt 0:01:01]} 47. Kc1 {[%emt 0:00:23]} Ra2 {[%emt 0:00:08]} 48. Rxh5 {[%emt 0:00:11]} Ra1+ {[%emt 0:01:02]} 49. Bb1 {[%emt 0:00:31]} Ne6 {[%emt 0:00:22]} 50. Rh4 {[%emt 0:01:07]} f5 {[%emt 0:00:47]} 51. Kb2 {[%emt 0:00:21]} Rxb1+ {[%emt 0:00:14]} 52. Kxb1 {[%emt 0:00:01]} Nf4 {[%emt 0:00:12]} 53. Kc2 {[%emt 0:01:15]} Nxe2 {[%emt 0:00:22]} 54. Rh5 {[%emt 0:00:21]} Kg6 {[%emt 0:00:19]} 55. Rh8 {[%emt 0:00:09]} d4 {[%emt 0:00:57]} 56. Kd3 {[%emt 0:01:09]} Nxc3 {[%emt 0:00:19]} 57. Kxd4 {[%emt 0:00:04]} Ne4 {[%emt 0:00:35]} 58. Ke5 {[%emt 0:00:30]} Nd2 {[%emt 0:00:20]} 59. b4 {[%emt 0:00:49]} Nf3+ {[%emt 0:00:24]} 60. Kf4 {[%emt 0:01:18]} Nd4 {[%emt 0:00:03]} 61. Rc8 {[%emt 0:00:31]} Kf6 {[%emt 0:00:29]} 62. Rh8 {[%emt 0:00:28]} Kg7 {[%emt 0:00:58]} 63. Rb8 {[%emt 0:00:25]} Kf6 {[%emt 0:00:25]} 64. Rb6 {[%emt 0:00:26]} Ke6 {[%emt 0:00:34]} 65. b5 {[%emt 0:00:40]} Nxb5 {[%emt 0:00:17]} 66. Rxc6+ {[%emt 0:00:02]} Nd6 {[%emt 0:00:06]} 67. Ra6 {[%emt 0:00:16]} Kd5 {[%emt 0:00:28]} 68. Ra1 {[%emt 0:00:36]} Ke6 {[%emt 0:00:12]} 69. Ra5 {[%emt 0:00:19]} Kf7 {[%emt 0:01:23]} 70. Rd5 {[%emt 0:01:11]} Ke6 {[%emt 0:00:12]} 71. Rc5 {[%emt 0:00:17]} Kf7 {[%emt 0:00:41]} 72. Ke5 {[%emt 0:00:11]} Ne4 {[%emt 0:00:33]} 73. Rc1 {[%emt 0:01:01]} Kg6 {[%emt 0:00:30]} 74. Rc8 {[%emt 0:00:39]} Nd2 {[%emt 0:00:38]} 75. Kf4 {[%emt 0:00:23]} Nf3 {[%emt 0:00:29]} 76. h3 {[%emt 0:00:31]} Ne1 {[%emt 0:01:28]} 77. hxg4 fxg4 {[%emt 0:00:12]} 78. Kxg4 {[%emt 0:00:50]} Nd3 {[%emt 0:00:18]} 79. Rc6+ {[%emt 0:00:03]} Kf7 {[%emt 0:00:11]} 80. Kf5 {[%emt 0:00:04]} Ke7 {[%emt 0:00:23]} 81. Rc4 {[%emt 0:00:04]} Nf2 {[%emt 0:00:45]} 82. Rd4 {[%emt 0:00:35]} Nh3 {[%emt 0:00:07]} 83. Kg4 {[%emt 0:00:11]} 1-0